bitfinex-derivatives/quotes_BTCF0:USTF0_20220103
["timestamp","ask_amount","ask_price","bid_price","bid_amount"]
[1641175483228,0.36217428,47097.0,47096.0,0.70928984]
[1641175483428,0.38341386,47097.0,47089.0,1.29584136]
[1641175483628,0.38341386,47097.0,47085.0,1.8384035]
[1641175483629,0.20241386,47097.0,47094.0,0.82446608]
[1641175483829,0.3935,47095.0,47094.0,0.63956608]
[1641175484428,0.3935,47095.0,47092.0,1.17780868]
[1641175484629,0.001,47093.0,47092.0,1.17780868]
[1641175484829,0.49417134,47093.0,47092.0,1.17780868]
[1641175485030,0.28167134,47093.0,47092.0,1.17780868]
[1641175485231,0.28167134,47093.0,47087.0,0.35426126]
[1641175485431,0.181,47088.0,47087.0,0.35426126]
[1641175486030,0.369,47088.0,47087.0,0.35426126]
[1641175486231,0.369,47088.0,47084.0,0.35426126]
[1641175486430,0.001,47085.0,47084.0,0.35426126]
[1641175486630,0.08974,47085.0,47084.0,0.35426126]
[1641175486830,0.26974,47085.0,47084.0,0.35426126]
[1641175487334,0.26974,47085.0,47079.0,1.17780868]
[1641175487532,0.001,47080.0,47077.0,0.14033567]
[1641175487733,0.001,47078.0,47077.0,0.14033567]
[1641175488333,0.181,47078.0,47077.0,0.14033567]
[1641175489134,0.181,47078.0,47073.0,0.35426126]
[1641175489334,0.18,47078.0,47072.0,0.35426126]
[1641175490034,0.364,47078.0,47072.0,0.49526126]
[1641175490239,0.36110508,47076.0,47072.0,0.141]
[1641175490835,0.14033567,47074.0,47072.0,0.141]
[1641175491235,0.14033567,47074.0,47067.0,0.49459693]
[1641175492038,0.32633567,47074.0,47071.0,0.17]
[1641175493541,0.68744075,47074.0,47071.0,0.17]
[1641175493941,0.18,47072.0,47071.0,0.02]
[1641175494141,0.68444075,47074.0,47071.0,0.163]
[1641175495544,0.50144075,47074.0,47071.0,0.02]
[1641175496142,0.68644075,47074.0,47071.0,0.168]
[1641175496342,0.86644075,47074.0,47071.0,0.168]
[1641175496744,0.68644075,47074.0,47071.0,0.168]
[1641175497443,0.36110508,47073.0,47071.0,0.168]
[1641175497943,0.36110508,47073.0,47071.0,0.02]
[1641175498146,0.181,47073.0,47071.0,0.171]
[1641175499444,0.50144075,47074.0,47071.0,0.02]
[1641175500046,0.32233567,47074.0,47071.0,0.174]
[1641175502146,0.32933567,47074.0,47071.0,0.182]
[1641175503348,0.14033567,47074.0,47071.0,0.02]
[1641175504151,0.30733567,47074.0,47071.0,0.191]
[1641175505551,0.14033567,47074.0,47071.0,0.02]
[1641175506052,0.30533567,47074.0,47071.0,0.19]
[1641175507452,0.30533567,47074.0,47072.0,0.59133465]
[1641175507453,0.09043784,47073.0,47072.0,0.59133465]
[1641175508052,0.25743784,47073.0,47072.0,0.76533465]
[1641175509456,0.09043784,47073.0,47072.0,0.59133465]
[1641175509655,0.14033567,47074.0,47071.0,0.02]
[1641175510057,0.175,47073.0,47072.0,0.179]
[1641175510257,0.26543559,47073.0,47072.0,0.179]
[1641175511559,0.09043559,47073.0,47071.0,0.84919633]
[1641175512060,0.26343559,47073.0,47071.0,1.02619633]
[1641175512961,0.09043559,47072.0,47071.0,0.197]
[1641175513361,0.09043559,47072.0,47071.0,0.02]
[1641175514172,0.26143559,47072.0,47071.0,0.195]
[1641175514773,0.171,47072.0,47071.0,0.195]
[1641175515480,0.09043559,47072.0,47071.0,0.02]
[1641175516184,0.26643559,47072.0,47071.0,0.199]
[1641175516485,0.176,47072.0,47071.0,0.199]
[1641175517384,0.26643559,47072.0,47071.0,0.199]
[1641175517583,0.09043559,47072.0,47071.0,0.02]
[1641175518084,0.25243559,47072.0,47071.0,0.187]
[1641175519385,0.09043559,47072.0,47071.0,0.02]
[1641175520086,0.25643559,47072.0,47071.0,0.19]
[1641175521387,0.25643559,47072.0,47071.0,0.02]
[1641175521586,0.09043559,47072.0,47071.0,0.02]
[1641175522089,0.26043559,47072.0,47071.0,0.194]
[1641175522486,0.17,47072.0,47071.0,0.194]
[1641175523488,0.09043559,47072.0,47071.0,0.02]
[1641175524090,0.26043559,47072.0,47071.0,0.194]
[1641175524292,0.17,47072.0,47071.0,0.194]
[1641175525391,0.26043559,47072.0,47071.0,0.194]
[1641175525591,0.09043559,47072.0,47071.0,0.02]
[1641175526192,0.27643559,47072.0,47071.0,0.176]
[1641175526895,0.29768614,47072.0,47071.0,0.176]
[1641175527095,0.72257382,47072.0,47071.0,0.176]
[1641175527395,0.72357382,47072.0,47071.0,0.176]
[1641175527596,1.98454319,47072.0,47071.0,0.02]
[1641175528292,0.40490188,47070.0,47069.0,0.35524177]
[1641175528493,0.58590188,47070.0,47069.0,0.35524177]
[1641175528694,0.2022521,47070.0,47069.0,0.35524177]
[1641175528993,0.2022521,47070.0,47066.0,0.35524177]
[1641175529194,0.181,47067.0,47066.0,0.35524177]
[1641175530195,0.373,47067.0,47064.0,0.94688372]
[1641175530396,0.001,47065.0,47064.0,0.35524177]
[1641175530798,0.02225529,47065.0,47064.0,0.35524177]
[1641175531196,0.11269088,47065.0,47063.0,0.35524177]
[1641175531395,0.181,47064.0,47061.0,0.59164195]
[1641175531595,0.001,47062.0,47061.0,0.59164195]
[1641175532297,1.309,47062.0,47058.0,1.09256618]
[1641175532498,0.181,47059.0,47054.0,0.59395059]
[1641175532697,0.18,47055.0,47054.0,0.59395059]
[1641175533097,0.001,47055.0,47054.0,0.59395059]
[1641175533500,0.14133567,47055.0,47054.0,0.59395059]
[1641175533998,0.23177126,47055.0,47048.0,2.45546332]
[1641175534201,0.18,47052.0,47048.0,0.82946332]
[1641175535399,0.001,47049.0,47048.0,0.82946332]
[1641175535602,0.14133567,47049.0,47048.0,0.82946332]
[1641175536199,0.39877126,47049.0,47048.0,0.82946332]
[1641175536400,0.39777126,47049.0,47048.0,0.82946332]
[1641175537504,0.23177126,47049.0,47048.0,0.82946332]
[1641175538202,0.39877126,47049.0,47048.0,0.82946332]
[1641175539603,0.23177126,47049.0,47048.0,0.82946332]
[1641175540302,0.39877126,47049.0,47048.0,0.82946332]
[1641175541406,0.39877126,47049.0,47045.0,0.82946332]
[1641175541603,0.001,47046.0,47045.0,0.82946332]
[1641175542005,0.001,47046.0,47045.0,0.84152445]
[1641175542206,0.177,47046.0,47045.0,0.84152445]
[1641175543507,0.26743559,47046.0,47045.0,0.84152445]
[1641175543708,0.09143559,47046.0,47045.0,0.84152445]
[1641175544306,0.26743559,47046.0,47045.0,0.84152445]
[1641175545508,0.09143559,47046.0,47045.0,0.84152445]
[1641175546207,0.26343559,47046.0,47045.0,0.84152445]
[1641175547211,0.173,47046.0,47045.0,0.82946332]
[1641175547510,0.173,47046.0,47045.0,0.84152453]
[1641175547726,0.001,47046.0,47045.0,0.84152453]
[1641175548210,0.098,47046.0,47045.0,1.02852453]
[1641175548411,0.098,47046.0,47045.0,0.19906121]
[1641175548613,1.03282637,47046.0,47045.0,0.19906121]
[1641175549311,0.14033567,47049.0,47045.0,0.19906121]
[1641175549513,0.001,47046.0,47045.0,0.37906121]
[1641175549713,0.001,47046.0,47045.0,0.18]
[1641175550213,0.001,47046.0,47045.0,0.372]
[1641175551517,0.001,47046.0,47045.0,0.18]
[1641175552317,0.001,47046.0,47045.0,0.372]
[1641175553215,0.001,47046.0,47045.0,1.487]
[1641175553615,0.001,47046.0,47045.0,1.295]
[1641175553815,0.001,47046.0,47045.0,0.18]
[1641175554215,0.037,47046.0,47045.0,1.487]
[1641175555333,0.037,47046.0,47045.0,0.372]
[1641175555533,0.001,47046.0,47045.0,0.18]
[1641175555733,0.001,47046.0,47043.0,1.3030228]
[1641175555932,0.14033567,47049.0,47043.0,1.3030228]
[1641175556133,0.21946567,47049.0,47043.0,1.3030228]
[1641175556332,0.165,47046.0,47043.0,1.4910228]
[1641175557534,0.14033567,47049.0,47043.0,1.3030228]
[1641175558233,0.28433567,47049.0,47043.0,1.4870228]
[1641175558433,0.28433567,47049.0,47048.0,0.5945064]
[1641175558637,0.28533567,47049.0,47048.0,0.5945064]
[1641175559536,0.14133567,47049.0,47048.0,0.5945064]
[1641175560340,0.28533567,47049.0,47048.0,0.7635064]
[1641175561135,0.28533567,47049.0,47048.0,1.12121421]
[1641175561335,0.28533567,47049.0,47048.0,0.52670781]
[1641175561536,0.28533567,47049.0,47048.0,0.35770781]
[1641175561537,0.14133567,47049.0,47048.0,0.35770781]
[1641175562235,0.28033567,47049.0,47048.0,0.50070781]
[1641175563635,0.14133567,47049.0,47048.0,0.35770781]
[1641175564237,0.28233567,47049.0,47048.0,0.50270781]
[1641175565441,0.37690621,47049.0,47048.0,0.50270781]
[1641175565938,0.23590621,47049.0,47048.0,0.35770781]
[1641175566238,0.38390621,47049.0,47048.0,0.50870781]
[1641175567539,0.23590621,47049.0,47048.0,0.35770781]
[1641175568040,0.32207621,47049.0,47048.0,0.35770781]
[1641175568241,0.47007621,47049.0,47048.0,0.50970781]
[1641175569539,0.47007621,47049.0,47048.0,0.35770781]
[1641175569741,0.32207621,47049.0,47048.0,0.35770781]
[1641175570240,0.46307621,47049.0,47048.0,0.50270781]
[1641175571644,0.32207621,47049.0,47048.0,0.35770781]
[1641175572245,0.32207621,47049.0,47044.0,0.35770781]
[1641175572444,0.46007621,47049.0,47048.0,0.142]
[1641175572645,0.46107621,47049.0,47048.0,0.142]
[1641175573044,0.36650567,47049.0,47048.0,0.142]
[1641175573645,0.248767,47049.0,47044.0,0.35770781]
[1641175573845,0.001,47045.0,47044.0,0.35770781]
[1641175574245,0.172,47045.0,47044.0,0.53170781]
[1641175574745,0.172,47045.0,47044.0,0.174]
[1641175575749,0.001,47045.0,47042.0,0.35770781]
[1641175575948,0.14033567,47048.0,47042.0,0.35770781]
[1641175576348,0.171,47045.0,47042.0,0.52870781]
[1641175577649,0.14033567,47048.0,47042.0,0.35770781]
[1641175578148,0.14033567,47048.0,47043.0,0.35770781]
[1641175578351,0.30033567,47048.0,47043.0,0.35770781]
[1641175579753,0.14033567,47048.0,47043.0,0.35770781]
[1641175580453,0.28833567,47048.0,47043.0,0.51070781]
[1641175581654,0.14033567,47048.0,47043.0,0.35770781]
[1641175582355,0.28433567,47048.0,47043.0,0.50670781]
[1641175583756,0.14033567,47048.0,47043.0,0.35770781]
[1641175584057,0.14033567,47048.0,47042.0,0.35770781]
[1641175584459,0.28033567,47048.0,47043.0,0.143]
[1641175585666,0.14033567,47048.0,47042.0,0.35770781]
[1641175585866,1.58788504,47048.0,47045.0,0.35770781]
[1641175586063,0.001,47046.0,47045.0,0.35770781]
[1641175587765,0.02226309,47046.0,47045.0,0.35770781]
[1641175587964,0.02226309,47046.0,47045.0,0.29393853]
[1641175588368,0.21226309,47046.0,47045.0,0.29393853]
[1641175588567,0.21226309,47046.0,47043.0,0.5945064]
[1641175588766,0.21226309,47046.0,47040.0,0.29393853]
[1641175588767,0.181,47044.0,47040.0,0.29393853]
[1641175588980,0.001,47041.0,47040.0,0.29393853]
[1641175589968,0.001,47041.0,47039.0,0.5945064]
[1641175590169,0.18,47044.0,47039.0,0.5945064]
[1641175590170,0.14133567,47040.0,47039.0,0.5945064]
[1641175590368,0.14133567,47040.0,47035.0,0.5945064]
[1641175590570,0.001,47036.0,47035.0,0.5945064]
[1641175590769,0.08211,47036.0,47035.0,0.5945064]
[1641175592472,0.24011,47036.0,47035.0,0.7555064]
[1641175592672,0.33445693,47036.0,47035.0,0.7555064]
[1641175593676,0.17645693,47036.0,47035.0,0.5945064]
[1641175594279,0.39806002,47036.0,47035.0,0.5945064]
[1641175594479,0.71106002,47036.0,47035.0,0.5945064]
[1641175596380,0.71106002,47036.0,47031.0,0.76373593]
[1641175596381,0.51026515,47035.0,47031.0,0.76373593]
[1641175596595,0.181,47032.0,47028.0,0.5945064]
[1641175596794,0.001,47029.0,47028.0,0.5945064]
[1641175597695,0.181,47029.0,47028.0,0.5945064]
[1641175598295,0.32133567,47029.0,47028.0,0.5945064]
[1641175598499,0.50333567,47029.0,47028.0,0.5945064]
[1641175598897,0.5976826,47029.0,47028.0,0.5945064]
[1641175599197,0.5976826,47029.0,47023.0,0.5945064]
[1641175599396,0.5966826,47029.0,47023.0,0.5945064]
[1641175599796,0.4146826,47029.0,47023.0,0.5945064]
[1641175599997,0.18,47028.0,47023.0,0.5945064]
[1641175600498,0.14033567,47024.0,47023.0,0.7515064]
[1641175600699,0.23330567,47024.0,47023.0,0.7515064]
[1641175601399,0.23330567,47024.0,47023.0,0.157]
[1641175601797,0.23330567,47024.0,47022.0,0.5945064]
[1641175602499,0.5086526,47024.0,47022.0,0.7675064]
[1641175602698,0.5086526,47024.0,47023.0,0.5945064]
[1641175603499,0.5086526,47024.0,47022.0,0.7675064]
[1641175603702,0.3276526,47024.0,47022.0,0.5945064]
[1641175604400,0.5066526,47024.0,47022.0,0.7675064]
[1641175604802,0.09434693,47023.0,47022.0,0.7675064]
[1641175605703,0.09434693,47023.0,47022.0,0.5945064]
[1641175606104,0.09434693,47023.0,47021.0,0.5945064]
[1641175606503,0.26234693,47023.0,47022.0,0.17]
[1641175607805,0.09434693,47023.0,47021.0,0.5945064]
[1641175608407,0.24834693,47023.0,47021.0,0.7505064]
[1641175609709,0.09434693,47023.0,47021.0,0.5945064]
[1641175609909,0.001,47022.0,47021.0,0.5945064]
[1641175610510,0.27034693,47022.0,47021.0,0.89130896]
[1641175611010,0.29162066,47022.0,47021.0,0.89130896]
[1641175611213,1.73998025,47022.0,47021.0,0.059]
[1641175611712,1.56498025,47022.0,47020.0,0.02]
[1641175611912,0.001,47021.0,47020.0,0.02]
[1641175612513,0.195,47021.0,47020.0,0.02]
[1641175613812,0.001,47021.0,47020.0,0.02]
[1641175614612,0.195,47021.0,47020.0,0.02]
[1641175615913,0.001,47021.0,47020.0,0.02]
[1641175616415,0.194,47021.0,47020.0,0.02]
[1641175617216,0.2936295,47021.0,47020.0,0.02]
[1641175617614,0.31490515,47021.0,47020.0,0.02]
[1641175617814,0.40535651,47020.0,47012.0,0.83230896]
[1641175618015,0.18,47019.0,47011.0,0.83230896]
[1641175618415,0.14033567,47012.0,47011.0,0.83230896]
[1641175618715,0.14033567,47012.0,47009.0,2.03243798]
[1641175618915,0.14033567,47012.0,47009.0,0.83230896]
[1641175619114,0.001,47010.0,47009.0,0.83230896]
[1641175619715,0.001,47010.0,47008.0,0.83230896]
[1641175620014,0.0996295,47011.0,47008.0,0.83230896]
[1641175620417,0.168,47010.0,47008.0,1.00230896]
[1641175620618,0.0996295,47009.0,47008.0,0.17]
[1641175621019,0.1006295,47009.0,47008.0,0.17]
[1641175621921,0.1006295,47009.0,47007.0,0.83230896]
[1641175622119,0.001,47008.0,47006.0,1.01230896]
[1641175622321,0.001,47007.0,47006.0,1.01230896]
[1641175622520,0.14133567,47007.0,47006.0,1.01230896]
[1641175622920,0.14033567,47007.0,47006.0,1.01230896]
[1641175623121,0.23996517,47007.0,47006.0,1.01230896]
[1641175623922,0.24096517,47007.0,47006.0,1.01230896]
[1641175624322,0.24096517,47007.0,47006.0,0.83230896]
[1641175624526,0.41496517,47007.0,47006.0,1.18830896]
[1641175625024,0.41496517,47007.0,47006.0,1.00830896]
[1641175625628,0.24096517,47007.0,47006.0,0.83230896]
[1641175626228,0.26224545,47007.0,47006.0,0.83230896]
[1641175626427,0.45524545,47007.0,47006.0,0.83230896]
[1641175626830,0.45524545,47007.0,47002.0,0.60275788]
[1641175627031,0.001,47003.0,47002.0,0.60275788]
[1641175627231,0.0733,47003.0,47002.0,0.60275788]
[1641175628130,0.0733,47003.0,46995.0,1.6158]
[1641175628333,0.0733,47003.0,46992.0,0.18]
[1641175628334,0.0723,47003.0,46992.0,0.18]
[1641175628532,0.2563,47003.0,47002.0,0.144]
[1641175628732,0.27858419,47003.0,47002.0,0.144]
[1641175628931,0.70409136,47003.0,47002.0,0.144]
[1641175629331,0.70409136,47003.0,46996.0,0.84478661]
[1641175629332,0.51063033,47001.0,46997.0,0.17783988]
[1641175629534,1.5085,46998.0,46997.0,0.17783988]
[1641175629733,1.52979048,46998.0,46996.0,0.51192116]
[1641175629933,0.001,46997.0,46996.0,0.51192116]
[1641175630135,0.001,46997.0,46996.0,0.50962116]
[1641175630346,0.187,46997.0,46996.0,0.50962116]
[1641175630563,1.87195858,46997.0,46994.0,1.20223801]
[1641175630745,1.5085,46995.0,46994.0,1.16583801]
[1641175630945,1.5085,46995.0,46994.0,1.07023801]
[1641175631145,1.5085,46995.0,46994.0,0.98363801]
[1641175631347,1.5085,46995.0,46977.0,2.63523801]
[1641175631348,2.0085,46995.0,46977.0,2.63523801]
[1641175631554,0.02129289,46979.0,46977.0,2.63523801]
[1641175631747,0.001,46978.0,46977.0,2.63523801]
[1641175631946,0.001,46978.0,46977.0,0.90943801]
[1641175632347,0.184,46978.0,46977.0,0.90943801]
[1641175632548,0.69972461,46978.0,46974.0,1.32752181]
[1641175632747,0.001,46975.0,46974.0,1.32752181]
[1641175632949,0.001,46975.0,46970.0,0.02]
[1641175633150,0.02129684,46971.0,46970.0,0.02]
[1641175633549,0.02229684,46971.0,46970.0,0.02]
[1641175634053,1.34979684,46971.0,46970.0,0.02]
[1641175634450,1.67813251,46971.0,46970.0,0.02]
[1641175634660,1.67813251,46971.0,46955.0,1.44820561]
[1641175634851,0.2125,46958.0,46955.0,1.38429571]
[1641175635048,0.20230674,46956.0,46955.0,1.38429571]
[1641175635449,0.41480674,46956.0,46948.0,1.54755227]
[1641175635650,0.3935,46951.0,46948.0,1.54755227]
[1641175635849,0.3935,46951.0,46950.0,0.48]
[1641175635850,0.41481089,46951.0,46950.0,0.48]
[1641175636249,1.52981089,46951.0,46950.0,0.05399545]
[1641175636451,1.52981089,46951.0,46931.0,1.4836165]
[1641175636452,0.5,46948.0,46931.0,1.4836165]
[1641175636651,0.2125,46933.0,46931.0,1.4836165]
[1641175636851,0.001,46932.0,46931.0,1.4836165]
[1641175637254,0.001,46932.0,46931.0,1.4293165]
[1641175637651,0.02231806,46932.0,46931.0,1.4293165]
[1641175638250,0.02231806,46932.0,46920.0,1.68204476]
[1641175638452,0.0312,46932.0,46931.0,0.18]
[1641175638661,0.14033567,46951.0,46931.0,0.18]
[1641175638662,0.02130993,46941.0,46931.0,0.18]
[1641175638854,0.14033567,46951.0,46939.0,0.18]
[1641175639051,0.14033567,46951.0,46947.0,0.18]
[1641175639251,0.14033567,46951.0,46950.0,0.18]
[1641175639454,0.06388653,46959.0,46951.0,0.009794]
[1641175639651,0.06388653,46959.0,46956.0,0.18]
[1641175639855,0.21185644,46957.0,46956.0,0.18]
[1641175640152,1.7892972,46966.0,46956.0,0.189794]
[1641175640355,1.7892972,46966.0,46965.0,0.18]
[1641175640553,1.7892972,46966.0,46965.0,0.26228]
[1641175640755,1.7892972,46966.0,46965.0,0.08228]
[1641175640954,1.7892972,46966.0,46965.0,0.26228]
[1641175641357,0.02129491,46975.0,46965.0,0.26228]
[1641175641555,1.79207314,46988.0,46971.0,0.18]
[1641175641754,0.02128983,46986.0,46976.0,0.18]
[1641175641955,0.02128983,46986.0,46976.0,0.08619]
[1641175642358,0.32633567,46981.0,46976.0,0.25319]
[1641175643157,0.001,46977.0,46976.0,0.25319]
[1641175643356,0.001,46977.0,46976.0,0.167]
[1641175643657,0.001,46977.0,46975.0,0.14033567]
[1641175643859,0.16162768,46981.0,46975.0,0.14033567]
[1641175643860,0.001,46976.0,46975.0,0.14033567]
[1641175644460,0.177,46976.0,46975.0,0.32133567]
[1641175644864,0.177,46976.0,46975.0,0.50133567]
[1641175645162,0.29875353,46976.0,46975.0,0.32133567]
[1641175645761,0.12275353,46976.0,46975.0,0.14033567]
[1641175646362,0.29875353,46976.0,46975.0,0.38133567]
[1641175646562,0.29875353,46976.0,46975.0,0.32133567]
[1641175647864,0.12275353,46976.0,46975.0,0.14033567]
[1641175648362,0.182,46976.0,46975.0,0.31633567]
[1641175648764,0.5,46975.0,46957.0,0.3397]
[1641175648966,0.18,46963.0,46941.0,1.02589789]
[1641175649163,0.02130572,46951.0,46933.0,0.02130572]
[1641175649363,0.07238,46951.0,46946.0,0.3397]
[1641175649763,0.001,46947.0,46940.0,0.18]
[1641175649963,0.07238,46951.0,46940.0,0.18]
[1641175650165,0.07238,46951.0,46934.0,0.009794]
[1641175650363,0.02130895,46944.0,46939.0,0.18]
[1641175650563,0.001,46940.0,46939.0,0.18]
[1641175650762,0.06135,46940.0,46939.0,0.18]
[1641175651163,0.06135,46940.0,46935.0,0.32033567]
[1641175651364,0.06035,46940.0,46935.0,0.32033567]
[1641175652463,0.24735,46940.0,46935.0,0.32033567]
[1641175653765,0.06035,46940.0,46935.0,0.32033567]
[1641175654364,0.24835,46940.0,46935.0,0.32033567]
[1641175654565,0.02131179,46938.0,46930.0,0.14033567]
[1641175654766,0.02131179,46938.0,46925.0,0.14033567]
[1641175655168,0.0857109,46937.0,46926.0,0.18]
[1641175655867,0.0857109,46937.0,46925.0,0.14033567]
[1641175655868,0.0857109,46937.0,46927.0,0.18]
[1641175656269,0.02131179,46938.0,46927.0,0.18]
[1641175656469,0.18,46933.0,46924.0,0.0213102]
[1641175656669,0.18,46933.0,46919.0,0.16033567]
[1641175656670,0.14033567,46926.0,46919.0,0.02]
[1641175656870,0.22299567,46926.0,46923.0,0.18]
[1641175657771,0.22199567,46926.0,46923.0,0.18]
[1641175657969,0.10138643,46925.0,46923.0,0.18]
[1641175659372,0.10138643,46925.0,46923.0,0.77961223]
[1641175659573,0.32533567,46926.0,46923.0,1.89461223]
[1641175659574,0.186,46926.0,46923.0,1.89461223]
[1641175659774,1.65209989,46946.0,46923.0,1.89461223]
[1641175659775,0.02131052,46941.0,46924.0,0.009794]
[1641175659973,1.65209989,46946.0,46940.0,0.18]
[1641175660173,1.65209989,46946.0,46940.0,0.0801]
[1641175660376,1.65209989,46948.0,46941.0,0.18]
[1641175660574,0.001,46942.0,46940.0,0.0801]
[1641175660775,0.001,46941.0,46940.0,0.0801]
[1641175660975,0.001,46941.0,46940.0,0.2601]
[1641175661775,0.14033567,46951.0,46940.0,0.2601]
[1641175661976,0.14033567,46951.0,46950.0,0.18]
[1641175662176,0.14033567,46951.0,46950.0,0.25666]
[1641175662778,0.14033567,46951.0,46950.0,0.07666]
[1641175663178,0.14033567,46951.0,46947.0,0.009794]
[1641175663777,0.001,46948.0,46947.0,0.009794]
[1641175664378,0.001,46948.0,46947.0,0.203794]
[1641175665581,0.14033567,46951.0,46947.0,0.203794]
[1641175665779,0.14033567,46951.0,46947.0,0.194]
[1641175666479,0.31733567,46951.0,46947.0,0.377]
[1641175666681,0.001,46948.0,46947.0,0.377]
[1641175667080,0.0594,46949.0,46947.0,0.377]
[1641175667680,0.35517907,46948.0,46942.0,0.18]
[1641175668181,0.001,46943.0,46942.0,0.18]
[1641175668382,0.001,46943.0,46942.0,0.369]
[1641175669179,0.001,46943.0,46942.0,0.189]
[1641175669781,0.001,46943.0,46939.0,0.189794]
[1641175669981,0.05728,46947.0,46939.0,0.189794]
[1641175670383,0.05728,46947.0,46939.0,0.386794]
[1641175671782,0.05728,46947.0,46939.0,0.189794]
[1641175672483,0.21428,46947.0,46939.0,0.380794]
[1641175673183,0.21428,46947.0,46939.0,0.200794]
[1641175673386,0.21428,46947.0,46942.0,0.06]
[1641175673583,0.001,46943.0,46941.0,0.02130245]
[1641175673786,0.35517907,46950.0,46942.0,0.18]
[1641175673990,0.35506282,46953.0,46949.0,0.18]
[1641175674185,0.35506282,46953.0,46952.0,0.18]
[1641175674386,0.82875116,46956.0,46952.0,0.18]
[1641175674584,0.82875116,46956.0,46955.0,0.18]
[1641175675384,0.14033567,46962.0,46955.0,0.18]
[1641175675584,0.14033567,46962.0,46953.0,0.08597944]
[1641175675784,0.14033567,46962.0,46953.0,0.26597944]
[1641175676388,0.14033567,46962.0,46953.0,0.18]
[1641175676586,0.14033567,46962.0,46953.0,0.371]
[1641175676987,0.14033567,46962.0,46953.0,0.191]
[1641175677686,0.14033567,46962.0,46951.0,0.18]
[1641175678489,0.14033567,46962.0,46954.0,0.18]
[1641175679905,0.14033567,46962.0,46951.0,0.02129777]
[1641175680105,0.21752567,46957.0,46951.0,0.02129777]
[1641175680304,0.21752567,46957.0,46950.0,0.15012967]
[1641175680504,0.21752567,46957.0,46951.0,0.194]
[1641175681907,0.21752567,46957.0,46950.0,0.15012967]
[1641175682507,0.21752567,46957.0,46950.0,0.34312967]
[1641175683907,0.21752567,46957.0,46950.0,0.15012967]
[1641175684511,0.21752567,46957.0,46950.0,0.34212967]
[1641175685609,0.35529126,46956.0,46950.0,0.34212967]
[1641175685808,0.35529126,46956.0,46950.0,0.15012967]
[1641175686409,0.35529126,46956.0,46950.0,0.14033567]
[1641175686610,0.44758126,46956.0,46950.0,0.33533567]
[1641175687809,0.44758126,46956.0,46950.0,0.14033567]
[1641175687810,0.35529126,46955.0,46950.0,0.14033567]
[1641175688513,0.44758126,46956.0,46950.0,0.33333567]
[1641175690014,0.18,46955.0,46947.0,0.009794]
[1641175690517,0.314,46955.0,46947.0,0.184794]
[1641175690714,0.14033567,46952.0,46947.0,0.184794]
[1641175691718,0.14033567,46952.0,46947.0,0.009794]
[1641175692518,0.26733567,46952.0,46947.0,0.188794]
[1641175693721,0.26733567,46952.0,46947.0,0.009794]
[1641175693920,0.82875116,46948.0,46947.0,0.009794]
[1641175694524,0.82875116,46948.0,46947.0,0.192794]
[1641175695522,0.82875116,46950.0,46947.0,0.372794]
[1641175696123,0.82875116,46950.0,46947.0,0.189794]
[1641175696524,0.82875116,46950.0,46947.0,0.373794]
[1641175697024,0.82875116,46950.0,46948.0,1.115]
[1641175697226,0.92241542,46951.0,46949.0,0.02129886]
[1641175697425,0.92241542,46951.0,46950.0,0.18]
[1641175697626,0.92241542,46951.0,46950.0,1.115]
[1641175697828,0.82875116,46951.0,46950.0,1.115]
[1641175698027,0.82875116,46954.0,46950.0,1.115]
[1641175698527,0.82875116,46954.0,46950.0,0.183]
[1641175699727,0.82875116,46954.0,46953.0,0.18]
[1641175699930,0.09327684,46956.0,46953.0,0.18]
[1641175700329,0.09327684,46956.0,46951.0,0.23812858]
[1641175700533,0.09327684,46956.0,46953.0,0.181]
[1641175702031,0.09327684,46956.0,46949.0,1.295]
[1641175702331,0.09327684,46956.0,46949.0,1.115]
[1641175702531,0.09327684,46956.0,46949.0,0.361]
[1641175704034,0.09327684,46956.0,46947.0,1.14609359]
[1641175704035,0.09327684,46956.0,46947.0,0.39270446]
[1641175704438,0.001,46951.0,46947.0,0.02129959]
[1641175704733,0.09327684,46956.0,46947.0,0.181]
[1641175705334,0.14033567,46957.0,46947.0,0.181]
[1641175705934,0.14033567,46957.0,46946.0,0.14033567]
[1641175706135,0.32033567,46957.0,46946.0,0.14033567]
[1641175706635,0.09378396,46956.0,46946.0,0.31633567]
[1641175707037,0.09378396,46956.0,46947.0,1.17423406]
[1641175707238,0.09378396,46956.0,46948.0,0.009794]
[1641175707437,0.0001,46950.0,46948.0,0.009794]
[1641175708439,0.0001,46950.0,46948.0,1.124794]
[1641175708639,0.0001,46950.0,46948.0,1.309794]
[1641175708938,0.09378396,46956.0,46949.0,0.31952]
[1641175709842,0.09378396,46956.0,46951.0,0.18]
[1641175710139,0.09378396,46956.0,46952.0,1.18514074]
[1641175710340,0.09378396,46956.0,46952.0,1.50199974]
[1641175710739,0.09378396,46956.0,46952.0,1.115]
[1641175712542,0.09378396,46956.0,46954.0,0.60447572]
[1641175713157,0.09378396,46956.0,46955.0,0.009794]
[1641175713558,0.09378396,46956.0,46955.0,0.69020312]
[1641175713857,0.09378396,46956.0,46955.0,0.37227312]
[1641175714057,0.09378396,46956.0,46955.0,1.48727312]
[1641175714257,0.0001,46960.0,46955.0,1.72926972]
[1641175714458,0.0001,46960.0,46955.0,0.61426972]
[1641175714656,0.0001,46960.0,46955.0,0.80026972]
[1641175714860,0.0001,46960.0,46956.0,1.115]
[1641175715058,0.0001,46960.0,46955.0,0.80026972]
[1641175715760,0.0001,46960.0,46958.0,1.115]
[1641175715963,0.001,46959.0,46958.0,1.115]
[1641175716363,0.001,46959.0,46958.0,1.115579]
[1641175716560,0.001,46959.0,46958.0,1.300579]
[1641175717560,0.09478396,46959.0,46958.0,1.300579]
[1641175717761,0.09378396,46959.0,46958.0,1.300579]
[1641175717960,0.09378396,46959.0,46958.0,1.115579]
[1641175718462,0.0001,46960.0,46958.0,1.95503612]
[1641175718662,0.0001,46960.0,46958.0,2.14003612]
[1641175719362,0.0001,46960.0,46958.0,2.13945712]
[1641175719963,0.0001,46960.0,46958.0,1.95445712]